bitfinex-derivatives/quotes_SOLF0:USTF0_20251006
["timestamp","ask_amount","ask_price","bid_price","bid_amount"]
[1759715732819,107.28,231.22,231.15,3.8922]
[1759715733112,107.28,231.22,231.16,3.892]
[1759715733512,7.36,231.29,231.15,10.95250244]
[1759715733818,39.66,231.28,231.16,7.4]
[1759715734716,39.66,231.28,231.2,3.8914]
[1759715735106,40.90456051,231.28,231.2,3.8914]
[1759715737915,7.36,231.27,231.2,3.8914]
[1759715739417,1.24456051,231.3,231.19,7.4]
[1759715740314,7.36,231.21,231.17,3.55250244]
[1759715740520,1.24456051,231.19,231.13,3.8926]
[1759715740910,7.36,231.22,231.16,7.4]
[1759715745421,107.22,231.23,231.17,11.292]
[1759715745612,114.58,231.26,231.17,7.4]
[1759715745817,114.58,231.26,231.17,8.64456051]
[1759715746724,7.36,231.33,231.21,1.24456051]
[1759715746923,115.82456051,231.33,231.21,1.24456051]
[1759715747115,119.71396051,231.33,231.23,3.8909]
[1759715748121,7.36,231.33,231.26,3.8904]
[1759715748517,7.36,231.33,231.25,1.24456051]
[1759715749318,7.36,231.33,231.22,3.8912]
[1759715749319,12.49396051,231.33,231.22,3.8912]
[1759715750120,12.49396051,231.33,231.23,3.8909]
[1759715752727,12.49396051,231.33,231.25,3.8907]
[1759715759230,11.2494,231.33,231.25,3.8907]
[1759715759432,12.49396051,231.33,231.25,3.8907]
[1759715760430,7.41,231.26,231.18,1.24456051]
[1759715761034,7.41,231.26,231.2,3.8915]
[1759715763233,7.41,231.26,231.21,5.13576051]
[1759715763427,7.41,231.26,231.22,8.03]
[1759715770041,7.41,231.26,231.21,5.13576051]
[1759715770343,7.41,231.26,231.22,8.03]
[1759715773140,7.41,231.3,231.24,1.24456051]
[1759715773340,11.46602552,231.35,231.27,1.24456051]
[1759715773540,11.46602552,231.35,231.28,8.03]
[1759715773745,11.46602552,231.35,231.28,21.29947746]
[1759715774046,11.46602552,231.35,231.27,1.24456051]
[1759715774247,11.46602552,231.35,231.28,8.03]
[1759715775141,107.12,231.39,231.27,1.24456051]
[1759715775353,107.12,231.39,231.32,8.03]
[1759715775639,107.12,231.39,231.33,3.8893]
[1759715775841,107.12,231.39,231.33,1.24456051]
[1759715777034,107.12,231.39,231.33,5.13386051]
[1759715777242,1.24456051,231.34,231.24,8.03]
[1759715777546,8.65456051,231.34,231.24,9.27456051]
[1759715777941,7.41,231.34,231.28,7.31]
[1759715778245,7.41,231.34,231.28,20.19831221]
[1759715779146,7.41,231.34,231.28,24.08841221]
[1759715783645,7.41,231.34,231.28,20.19831221]
[1759715784150,8.65456051,231.34,231.28,12.88831221]
[1759715784352,8.65456051,231.34,231.24,8.55456051]
[1759715785652,8.65456051,231.34,231.25,3.8905]
[1759715786953,8.65456051,231.34,231.25,16.54316663]
[1759715787354,7.51,231.33,231.25,12.65266663]
[1759715787655,7.51,231.33,231.24,7.31]
[1759715789552,7.51,231.33,231.25,3.8905]
[1759715791156,7.51,231.33,231.26,3.8903]
[1759715791348,8.75456051,231.39,231.28,7.31]
[1759715791556,7.51,231.39,231.3,7.31]
[1759715792656,7.51,231.39,231.32,3.8893]
[1759715793254,7.51,231.39,231.33,7.65]
[1759715797054,7.75,231.37,231.29,7.65]
[1759715798053,7.75,231.37,231.29,11.54]
[1759715798350,7.75,231.37,231.29,3.89]
[1759715798551,7.75,231.35,231.26,7.65]
[1759715799162,7.75,231.35,231.29,3.89]
[1759715800564,9.69333811,231.39,231.3,3.8897]
[1759715800955,7.75,231.39,231.31,7.65]
[1759715801559,7.75,231.39,231.31,11.5395]
[1759715803760,7.75,231.39,231.33,3.8893]
[1759715807863,7.75,231.39,231.31,7.65]
[1759715808168,7.82,231.37,231.26,7.57]
[1759715809767,11.7088,231.37,231.27,3.8902]
[1759715810272,7.82,231.37,231.29,3.89]
[1759715813989,1.94333811,231.35,231.25,12.92145825]
[1759715814178,7.82,231.34,231.22,7.57]
[1759715814475,99.2,231.34,231.22,7.57]
[1759715815377,3.8895,231.33,231.22,11.4612]
[1759715815671,91.38,231.34,231.22,11.4612]
[1759715815876,7.82,231.28,231.22,12.92278024]
[1759715816076,7.82,231.28,231.19,3.8915]
[1759715818478,7.82,231.28,231.19,17.1091011]
[1759715818878,7.82,231.28,231.19,24.6791011]
[1759715819081,1.94333811,231.27,231.19,13.2176011]
[1759715819282,7.82,231.26,231.17,3.892]
[1759715820379,7.82,231.22,231.15,7.57]
[1759715820578,1.94333811,231.23,231.14,13.02973695]
[1759715820882,7.82,231.2,231.13,5.81757478]
[1759715821284,1.94333811,231.19,231.13,5.81757478]
[1759715821488,7.82,231.18,231.08,3.8934]
[1759715821784,7.82,231.18,231.08,12.93450232]
[1759715821977,7.82,231.18,231.07,7.57]
[1759715822173,1.94333811,231.15,231.07,7.57]
[1759715822372,7.82,231.14,231.07,7.57]
[1759715822574,7.82,231.14,230.97,323.88467917]
[1759715822575,1.94333811,231.15,231.02,11.4644]
[1759715822773,7.82,231.1,231.02,7.57]
[1759715822977,9.76333811,231.1,231.02,7.57]
[1759715823977,9.76333811,231.1,230.97,12.85887452]
[1759715823978,9.76333811,231.1,230.97,20.42887452]
[1759715824178,9.76333811,231.06,230.97,7.57]
[1759715825580,1.94333811,231.06,230.97,20.26789517]
[1759715825785,7.82,231.05,230.97,20.26789517]
[1759715826287,7.82,231.05,230.97,12.69789517]
[1759715826487,7.82,231.05,230.93,11.466]
[1759715827085,7.82,231.04,230.93,7.57]
[1759715828084,1.94333811,231.02,230.93,7.57]
[1759715828382,7.82,231.01,230.93,7.57]
[1759715829386,36.6,231.07,230.93,7.57]
[1759715829387,7.82,231.13,230.94,7.57]
[1759715829686,9.76333811,231.06,230.94,7.57]
[1759715829876,9.76333811,231.06,230.95,3.8956]
[1759715830479,7.82,231.06,230.98,7.57]
[1759715830680,184.5391,231.19,230.98,7.57]
[1759715830681,7.82,231.11,231.01,7.57]
[1759715830991,60.32,231.16,231.06,11.4638]
[1759715832089,7.82,231.16,231.06,7.57]
[1759715832283,7.82,231.16,230.99,7.57]
[1759715833182,7.82,231.16,231.03,11.4643]
[1759715834588,7.82,231.16,231.07,3.8936]
[1759715834786,7.82,231.16,231.07,7.57]
[1759715840495,7.82,231.16,231.07,11.4636]
[1759715842090,7.82,231.16,231.09,3.8933]
[1759715842293,107.04,231.19,231.07,7.6]
[1759715843600,107.04,231.19,231.11,3.893]
[1759715843999,4.06441396,231.2,231.12,7.6]
[1759715844187,314.88,231.22,231.16,7.6]
[1759715844387,7.9,231.25,231.16,7.6]
[1759715845693,7.9,231.25,231.17,3.892]
[1759715846896,7.9,231.25,231.19,3.8917]
[1759715847095,107.04,231.28,231.2,7.6]
[1759715848200,7.9,231.3,231.21,3.8913]
[1759715848400,7.9,231.3,231.22,7.6]
[1759715848596,316.86333811,231.35,231.25,3.8906]
[1759715848795,114.92,231.34,231.25,11.4906]
[1759715850993,124.0,231.43,231.21,1.94333811]
[1759715850994,7.9,231.4,231.27,11.4902]
[1759715851695,110.9081,231.41,231.27,11.4902]
[1759715852189,7.9,231.4,231.27,11.4902]
[1759715852991,7.9,231.4,231.28,60.5141]
[1759715853206,7.9,231.4,231.29,7.6]
[1759715854703,7.9,231.4,231.31,3.8896]
[1759715856000,7.9,231.4,231.29,7.6]
[1759715857105,7.9,231.4,231.3,1.24324373]
[1759715859702,7.9,231.4,231.31,3.8897]
[1759715862707,7.9,231.4,231.32,7.51]
[1759715862903,7.36,231.47,231.33,1.24324373]
[1759715863102,7.36,231.47,231.31,60.5055]
[1759715863103,8.60324373,231.47,231.37,7.51]
[1759715863300,8.60324373,231.47,231.37,11.3986]
[1759715864008,7.36,231.47,231.37,11.3986]
[1759715864209,8.60324373,231.47,231.37,11.3986]
[1759715864404,7.36,231.47,231.39,3.8883]
[1759715864615,7.36,231.47,231.39,11.3983]
[1759715865313,7.36,231.47,231.29,7.51]
[1759715865314,1.24324373,231.4,231.29,7.51]
[1759715865519,8.60324373,231.4,231.29,7.51]
[1759715865713,8.60324373,231.4,231.29,11.4]
[1759715866016,8.60324373,231.4,231.29,7.51]
[1759715866317,8.60324373,231.4,231.31,7.51]
[1759715866817,8.60324373,231.4,231.33,3.8893]
[1759715868721,7.36,231.4,231.33,3.8893]
[1759715869719,8.60324373,231.4,231.31,7.51]
[1759715870219,8.73324373,231.37,231.24,1.24324373]
[1759715871420,8.73324373,231.37,231.25,7.77]
[1759715871721,8.73324373,231.37,231.27,3.8903]
[1759715876727,8.73324373,231.37,231.25,7.77]
[1759715877424,8.73324373,231.37,231.27,3.8903]
[1759715881326,1.24324373,231.35,231.27,3.8903]
[1759715882425,8.73324373,231.35,231.27,3.8903]
[1759715883635,1.24324373,231.38,231.28,60.514]
[1759715883933,1.24324373,231.38,231.29,7.77]
[1759715884835,7.49,231.38,231.34,7.77]
[1759715885336,7.49,231.4,231.3,11.6598]
[1759715885540,7.49,231.37,231.3,11.6598]
[1759715891140,34.46,231.43,231.27,3.8902]
[1759715891141,1.24324373,231.35,231.27,3.8902]
[1759715891340,7.49,231.34,231.27,3.8902]
[1759715891843,7.49,231.34,231.26,7.77]
[1759715892844,1.24324373,231.32,231.26,7.77]
[1759715893044,1.24324373,231.32,231.26,11.6605]
[1759715893344,1.24324373,231.32,231.26,7.77]
[1759715893832,7.49,231.31,231.2,7.77]
[1759715894535,7.49,231.31,231.25,3.8906]
[1759715894738,7.49,231.31,231.25,11.6606]
[1759715899848,1.24324373,231.29,231.22,3.891]
[1759715900044,1.24324373,231.26,231.21,7.76]
[1759715900242,7.9,231.25,231.21,7.76]
[1759715900546,1.24324373,231.26,231.2,11.6515]
[1759715903348,1.24324373,231.32,231.21,7.76]
[1759715903552,9.14324373,231.32,231.21,7.76]
[1759715904249,9.14324373,231.32,231.25,3.8905]
[1759715906849,9.14324373,231.32,231.24,7.76]
[1759715907756,9.14324373,231.32,231.25,3.8907]
[1759715907949,7.9,231.37,231.25,1.24324373]
[1759715908153,7.9,231.41,231.32,9.00324373]
[1759715908756,9.14324373,231.49,231.38,1.24324373]
[1759715909150,50.97978818,231.5,231.37,7.76]
[1759715909151,1.24324373,231.46,231.37,7.76]
[1759715909351,7.9,231.45,231.37,7.76]
[1759715913161,50.97978818,231.5,231.43,7.76]
[1759715914351,50.97978818,231.5,231.44,3.8874]
[1759715914551,50.97978818,231.5,231.45,7.76]
[1759715914753,50.97978818,231.5,231.44,11.6474]
[1759715923464,58.76978818,231.5,231.44,11.6474]
[1759715923963,58.76978818,231.5,231.47,7.91]
[1759715924162,50.97978818,231.5,231.47,7.91]
[1759715925063,44.23801773,231.5,231.49,7.91]
[1759715925462,44.23801773,231.5,231.49,8.35]
[1759715926266,44.23801773,231.5,231.49,7.91]
[1759715926867,44.23801773,231.5,231.48,3.8868]
[1759715927068,44.23801773,231.5,231.48,11.7968]
[1759715928967,44.23801773,231.5,231.48,3.8868]
[1759715929369,7.41,231.49,231.45,9.70926655]
[1759715931269,44.23801773,231.5,231.45,5.82206655]
[1759715931470,44.23801773,231.5,231.46,7.35]
[1759715932672,44.23801773,231.5,231.48,3.8868]
[1759715933070,44.23801773,231.5,231.48,11.2368]
[1759715934074,44.23801773,231.5,231.48,3.8868]
[1759715934468,7.41,231.49,231.45,9.70926655]
[1759715935766,7.41,231.49,231.46,3.887]
[1759715936670,7.41,231.49,231.48,3.8868]
[1759715938976,44.23801773,231.5,231.48,3.8868]
[1759715939780,51.64801773,231.5,231.48,3.8868]
[1759715940675,7.41,231.49,231.45,9.70926655]
[1759715940983,44.23801773,231.5,231.45,9.70926655]
[1759715941172,7.41,231.49,231.46,3.887]
[1759715941680,44.23801773,231.5,231.46,3.887]
[1759715942483,7.41,231.49,231.46,3.887]
[1759715942887,44.23801773,231.5,231.46,3.887]
[1759715943881,7.41,231.49,231.46,3.887]
[1759715944079,44.23801773,231.5,231.46,3.887]
[1759715944582,7.41,231.49,231.46,3.887]
[1759715944984,44.23801773,231.5,231.46,3.887]
[1759715945481,44.23801773,231.5,231.45,5.82206655]
[1759715945482,7.41,231.49,231.45,5.82206655]
[1759715945684,7.41,231.49,231.43,12.87921097]
[1759715945881,7.41,231.49,231.35,7.35]
[1759715946083,46.17827449,231.5,231.35,107.35]
[1759715946281,7.41,231.49,231.35,107.35]
[1759715946681,46.17827449,231.5,231.35,107.35]
[1759715947082,46.17827449,231.5,231.35,7.35]
[1759715947083,7.41,231.45,231.35,7.35]
[1759715947885,7.41,231.45,231.38,3.8884]
[1759715948089,7.41,231.45,231.35,7.35]
[1759715949383,7.41,231.45,231.35,20.28236784]
[1759715949584,7.41,231.45,231.39,3.8882]
[1759715950486,7.41,231.45,231.41,11.238]
[1759715950693,7.41,231.45,231.38,67.8379]
[1759715951593,7.41,231.45,231.42,3.8877]
[1759715952095,46.17827449,231.5,231.42,3.8877]
[1759715952397,46.17827449,231.5,231.36,60.4924]
[1759715952398,7.41,231.49,231.4,3.8881]
[1759715953594,7.41,231.49,231.3,12.49918271]
[1759715953595,7.41,231.42,231.29,7.35]
[1759715953799,7.41,231.38,231.29,7.35]
[1759715954597,7.41,231.38,231.32,3.8895]
[1759715954798,7.41,231.38,231.32,16.55000526]
[1759715954995,7.41,231.38,231.32,12.66050526]
[1759715955195,7.41,231.38,231.29,7.35]
[1759715955689,7.41,231.38,231.31,3.8895]
[1759715955896,7.41,231.38,231.29,7.35]
[1759715956490,7.41,231.38,231.32,3.8893]
[1759715959295,7.41,231.38,231.32,16.71185351]
[1759715961098,7.41,231.38,231.32,12.82255351]
[1759715961298,7.41,231.38,231.3,3.8898]
[1759715961897,7.41,231.38,231.31,3.8895]
[1759715962295,7.41,231.38,231.29,7.35]
[1759715962999,7.41,231.38,231.33,11.3993]
[1759715963299,7.41,231.38,231.34,7.51]
[1759715963502,7.86,231.42,231.33,7.51]
[1759715964697,7.86,231.43,231.37,3.8887]
[1759715969299,7.86,231.43,231.33,7.51]
[1759715969300,7.86,231.43,231.34,3.889]
[1759715969996,65.25696453,231.62,231.4,60.4828]
[1759715970201,7.86,231.51,231.43,7.51]
[1759715971196,7.86,231.56,231.49,7.51]
[1759715971498,7.86,231.56,231.48,3.8868]
[1759715972097,7.86,231.56,231.48,11.3968]
[1759715974108,7.83,231.53,231.48,3.8868]
[1759715974905,7.83,231.53,231.48,11.1568]
[1759715975105,7.83,231.53,231.49,7.27]
[1759715977008,7.83,231.57,231.49,7.27]
[1759715978307,7.83,231.54,231.49,7.27]
[1759715980714,52.06801773,231.5,231.48,3.8868]
[1759715980912,52.06801773,231.5,231.48,110.5868]
[1759715981109,44.23801773,231.5,231.48,110.5868]
[1759715981310,44.23801773,231.5,231.48,117.8568]
[1759715982013,44.23801773,231.5,231.49,7.27]
[1759715983102,44.23801773,231.5,231.48,3.8868]
[1759715983309,7.83,231.49,231.48,110.5868]
[1759715984014,44.23801773,231.5,231.48,110.5868]
[1759715984514,44.23801773,231.5,231.48,3.8868]
[1759715984712,44.23801773,231.5,231.4,60.4828]
[1759715984713,52.06801773,231.5,231.46,7.27]
[1759715984911,52.06801773,231.5,231.47,106.7]
[1759715985111,52.06801773,231.5,231.46,7.27]
[1759715985314,52.06801773,231.5,231.47,106.7]
[1759715985709,52.06801773,231.5,231.47,110.5869]
[1759715986015,52.06801773,231.5,231.47,3.8869]
[1759715986217,52.06801773,231.5,231.47,110.5869]
[1759715986614,7.83,231.48,231.44,3.8873]
[1759715986915,44.23801773,231.5,231.44,110.5873]
[1759715987113,44.23801773,231.5,231.44,106.7]
[1759715987310,52.06801773,231.5,231.44,106.7]
[1759715987813,7.54,231.49,231.46,3.8871]
[1759715988007,44.23801773,231.5,231.46,3.8871]
[1759715988617,7.54,231.49,231.46,3.8871]
[1759715991721,44.23801773,231.5,231.46,3.8871]
[1759715992110,7.54,231.49,231.46,3.8871]
[1759715992514,44.23801773,231.5,231.46,3.8871]
[1759715993420,7.54,231.49,231.46,3.8871]
[1759715993716,7.54,231.49,231.47,3.8868]
[1759715993921,44.23801773,231.5,231.47,3.8868]
[1759715994222,7.54,231.49,231.47,3.8868]
[1759715994721,44.23801773,231.5,231.47,3.8868]
[1759715995021,44.23801773,231.5,231.45,106.68]
[1759715995222,7.54,231.49,231.45,106.68]
[1759715995524,7.54,231.49,231.45,110.5672]
[1759715995819,44.23801773,231.5,231.45,110.5672]
[1759715996017,7.54,231.49,231.45,110.5672]
[1759715996214,44.23801773,231.5,231.45,3.8872]
[1759715996416,1.24134115,231.49,231.45,3.8872]
[1759715996616,7.54,231.48,231.45,3.8872]
[1759715996820,1.24134115,231.49,231.43,106.68]
[1759715997221,7.54,231.48,231.43,106.68]
[1759715997419,1.24134115,231.49,231.43,106.68]
[1759715997819,7.54,231.48,231.43,106.68]
[1759715998127,1.24134115,231.49,231.43,106.68]
[1759715998321,7.54,231.48,231.43,106.68]
[1759715998717,44.23801773,231.5,231.43,106.68]
[1759715998922,8.78134115,231.49,231.43,106.68]
[1759715999122,8.78134115,231.49,231.42,106.68]
[1759715999627,1.24134115,231.49,231.44,3.8873]
[1759715999828,7.54,231.48,231.4,7.4]
[1759716000024,1.24134115,231.43,231.37,7.4]
[1759716000221,1.24134115,231.43,231.35,7.4]
[1759716000421,1.24134115,231.43,231.36,106.68]
[1759716001326,1.24134115,231.43,231.35,7.4]
[1759716001624,1.24134115,231.43,231.39,3.8883]
[1759716001824,7.54,231.42,231.39,3.8883]
[1759716002226,1.24134115,231.43,231.4,7.4]
[1759716002429,1.24134115,231.45,231.39,3.8883]
[1759716002625,7.54,231.44,231.39,3.8883]
[1759716002931,7.54,231.44,231.37,3.8886]
[1759716003432,7.54,231.44,231.36,114.08]
[1759716004331,8.78134115,231.49,231.39,7.4]
[1759716004535,8.78134115,231.49,231.39,8.64134115]
[1759716004936,8.78134115,231.49,231.39,7.4]
[1759716005131,8.78134115,231.49,231.41,7.4]
[1759716005428,7.54,231.49,231.41,114.1]
[1759716005633,7.54,231.49,231.42,3.8877]
[1759716006427,7.54,231.49,231.43,3.8875]
[1759716006829,44.23801773,231.5,231.42,60.4763]
[1759716007033,44.23801773,231.5,231.44,7.4]
[1759716007431,44.23801773,231.5,231.49,7.4]
[1759716009041,37.48011773,231.5,231.49,7.4]
[1759716010029,37.48011773,231.5,231.49,106.68]
[1759716010428,37.48011773,231.5,231.49,114.08]
[1759716013839,30.82001773,231.5,231.49,114.08]
[1759716015336,7.91151773,231.5,231.49,115.32134115]
[1759716015641,1.773e-05,231.5,231.49,115.32134115]
[1759716015942,1.773e-05,231.5,231.46,7.4]
[1759716016240,1.773e-05,231.5,231.44,1.24134115]
[1759716016241,1.773e-05,231.5,231.47,114.08]
[1759716016741,1.773e-05,231.5,231.48,11.2867]
[1759716017240,1.773e-05,231.5,231.49,106.66]
[1759716018836,1.773e-05,231.5,231.47,3.8868]
[1759716019037,1.773e-05,231.5,231.46,106.66]
[1759716019632,1.773e-05,231.5,231.46,114.25]
[1759716019832,1.773e-05,231.5,231.47,106.66]
[1759716020637,1.773e-05,231.5,231.46,11.477]
[1759716020839,1.773e-05,231.5,231.47,106.66]
[1759716021541,1.773e-05,231.5,231.48,3.8867]
[1759716022837,1.773e-05,231.5,231.49,7.59]
[1759716023646,1.773e-05,231.5,231.49,8.83134115]
[1759716024149,1.773e-05,231.5,231.49,9.27134115]
[1759716027648,1.773e-05,231.5,231.49,108.32134115]
[1759716027845,1.773e-05,231.5,231.49,107.88134115]
[1759716028045,1.773e-05,231.5,231.48,3.8867]
[1759716028247,1.773e-05,231.5,231.49,107.88134115]
[1759716028643,1.773e-05,231.5,231.48,3.8867]
[1759716028848,1.773e-05,231.5,231.44,5.79148757]
[1759716029049,1.773e-05,231.5,231.45,106.64]
[1759716029253,1.773e-05,231.5,231.46,114.23]
[1759716030055,1.773e-05,231.5,231.47,3.887]
[1759716031455,1.773e-05,231.5,231.49,3.8866]
[1759716031652,1.773e-05,231.5,231.49,110.5266]
[1759716032560,1.773e-05,231.5,231.49,118.1166]
[1759716034356,1.773e-05,231.5,231.49,110.5266]
[1759716035060,1.773e-05,231.5,231.49,111.76794115]
[1759716037858,1.773e-05,231.5,231.49,110.5266]
[1759716040263,1.773e-05,231.5,231.49,3.8866]
[1759716040463,1.773e-05,231.5,231.49,110.5066]
[1759716042258,1.773e-05,231.5,231.49,3.8866]
[1759716042563,1.773e-05,231.5,231.49,110.5066]
[1759716047873,1.93918692,231.64,231.56,3.8853]
[1759716048069,9.89918692,231.64,231.57,106.6]
[1759716048469,9.89918692,231.64,231.56,3.8853]
[1759716048771,1.93918692,231.59,231.49,7.8]
[1759716048965,1.93918692,231.55,231.45,7.8]
[1759716049273,7.96,231.5,231.44,76.49148757]
[1759716049477,7.96,231.5,231.44,5.79148757]
[1759716049670,1.93918692,231.51,231.46,7.8]
[1759716049968,9.89918692,231.55,231.46,7.8]
[1759716050175,7.96,231.5,231.46,7.8]
[1759716050469,7.96,231.5,231.44,9.67888757]
[1759716050673,7.96,231.5,231.46,7.8]
[1759716051067,7.96,231.5,231.45,106.6]
[1759716051374,1.93918692,231.55,231.47,7.8]
[1759716052067,1.93918692,231.55,231.48,110.4868]
[1759716053674,1.93918692,231.55,231.49,7.8]
[1759716053970,15.26,231.61,231.52,7.8]
[1759716054275,7.96,231.62,231.54,7.8]
[1759716054276,1.93918692,231.6,231.54,7.8]
[1759716054574,1.93918692,231.6,231.49,65.17788271]
[1759716054575,1.93918692,231.6,231.56,3.8855]
[1759716054767,7.96,231.62,231.56,3.8855]
[1759716054974,7.96,231.62,231.56,11.6855]
[1759716055270,1.93918692,231.64,231.58,3.8851]
[1759716055574,1.93918692,231.64,231.58,11.6851]
[1759716057471,1.93918692,231.64,231.58,110.4651]
[1759716059983,1.93918692,231.64,231.58,123.57886094]
[1759716060479,1.93918692,231.64,231.58,20.91376094]
[1759716060670,1.93918692,231.64,231.58,127.49376094]
[1759716061378,1.93918692,231.64,231.58,20.91376094]
[1759716063578,7.96,231.66,231.59,3.8849]
[1759716063880,9.89918692,231.66,231.59,3.8849]
[1759716064876,9.89918692,231.66,231.58,20.91376094]
[1759716065078,9.89918692,231.66,231.58,89.47376094]
[1759716065279,9.89918692,231.66,231.58,20.91376094]
[1759716065481,9.89918692,231.66,231.58,24.79886094]
[1759716067484,9.89918692,231.66,231.6,3.8848]
[1759716068185,7.96,231.66,231.6,3.8848]
[1759716068382,9.89918692,231.66,231.6,3.8848]
[1759716069786,7.96,231.66,231.6,3.8848]
[1759716070086,9.89918692,231.66,231.6,3.8848]
[1759716070787,9.89918692,231.66,231.58,127.47376094]
[1759716071084,9.89918692,231.66,231.58,20.91376094]
[1759716071581,7.96,231.74,231.67,7.8]
[1759716072283,7.96,231.74,231.6,7.8]
[1759716072579,1.93918692,231.79,231.53,416.36403751]
[1759716072580,1.93918692,231.67,231.62,7.8]
[1759716072780,7.96,231.66,231.57,7.8]
[1759716073181,7.96,231.66,231.58,106.54]
[1759716073385,7.96,231.66,231.59,7.8]
[1759716073788,7.96,231.66,231.6,3.8848]
[1759716074390,1.93918692,231.67,231.6,3.8848]
[1759716074587,9.89918692,231.7,231.62,7.8]
[1759716075590,9.89918692,231.7,231.63,3.8841]
[1759716076984,7.96,231.77,231.64,7.8]
[1759716077184,1.93918692,231.76,231.64,7.8]
[1759716077385,7.96,231.75,231.64,30.56]
[1759716077589,7.96,231.75,231.65,3.8839]
[1759716077794,7.96,231.75,231.65,7.76]
[1759716078392,7.96,231.75,231.67,3.8836]
[1759716078987,7.96,231.75,231.65,11.6439]
[1759716079192,1.93918692,231.76,231.65,11.6439]
[1759716079193,1.93918692,231.72,231.65,11.6439]
[1759716080199,1.93918692,231.72,231.66,3.8836]
[1759716080997,9.45918692,231.72,231.66,3.8836]
[1759716081198,9.45918692,231.72,231.65,7.76]
[1759716081695,1.93918692,231.68,231.6,3.8846]
[1759716081900,1.93918692,231.64,231.59,7.76]
[1759716082096,7.52,231.63,231.58,13.21116159]
[1759716082393,9.45918692,231.64,231.54,7.76]
[1759716082989,1.93918692,231.64,231.5,7.76]
[1759716083196,1.93918692,231.6,231.5,7.76]
[1759716083596,7.52,231.59,231.5,20.67362297]
[1759716083796,7.52,231.59,231.5,7.76]
[1759716084191,7.52,231.59,231.5,11.6464]
[1759716085600,7.52,231.59,231.5,7.76]
[1759716086398,7.52,231.55,231.46,11.6471]
[1759716086594,7.52,231.55,231.46,7.76]
[1759716087602,7.52,231.55,231.46,20.75747277]
[1759716088707,9.45918692,231.52,231.44,5.79148757]
[1759716088914,9.45918692,231.52,231.42,7.76]
[1759716089913,1.93918692,231.55,231.45,7.76]
[1759716090309,7.52,231.54,231.45,11.6472]
[1759716091013,1.93918692,231.55,231.48,7.76]
[1759716092014,7.52,231.54,231.43,3.8875]
[1759716092210,7.52,231.54,231.44,7.76]
[1759716092914,9.45918692,231.51,231.44,7.76]
[1759716093510,1.93918692,231.54,231.44,7.76]
[1759716094111,1.93918692,231.54,231.44,11.6474]
[1759716094410,1.93918692,231.54,231.44,7.76]
[1759716094609,7.91,231.53,231.44,7.76]
[1759716095019,1.93918692,231.52,231.44,7.76]
[1759716096417,7.91,231.53,231.44,7.76]
[1759716096613,9.84918692,231.53,231.44,7.76]
[1759716096816,7.91,231.48,231.42,13.09892191]
[1759716097115,7.91,231.52,231.42,7.53]
[1759716098020,7.91,231.52,231.43,3.8876]
[1759716098318,7.91,231.52,231.44,7.53]
[1759716099620,7.91,231.52,231.45,3.8873]
[1759716099821,7.91,231.52,231.44,7.53]
[1759716101015,9.15186771,231.52,231.44,7.53]
[1759716101717,40.42,231.58,231.39,12.98952686]
[1759716101718,9.15186771,231.49,231.39,12.98952686]
[1759716102017,9.15186771,231.49,231.4,7.53]
[1759716103815,1.24186771,231.46,231.4,7.53]